bitfinex/quotes_BTCUSD_20230111
["timestamp","ask_amount","ask_price","bid_price","bid_amount"]
[1673433152823,2.19177146,17457.0,17456.0,0.04169095]
[1673433153074,1.762303,17457.0,17456.0,0.04169095]
[1673433154076,1.94288313,17457.0,17456.0,0.04160581]
[1673433154903,2.14700003,17457.0,17456.0,0.04160581]
[1673433155401,1.94288313,17457.0,17456.0,0.04160581]
[1673433155670,1.62763105,17457.0,17456.0,0.0418528]
[1673433155919,1.19816259,17457.0,17456.0,0.0418528]
[1673433156451,1.1896564,17457.0,17456.0,0.0418528]
[1673433158834,1.7624924,17457.0,17456.0,0.0418528]
[1673433160687,1.7624924,17457.0,17456.0,0.04160581]
[1673433162436,2.13857549,17457.0,17456.0,0.04160581]
[1673433162694,2.42499549,17457.0,17456.0,0.04160581]
[1673433162946,2.85350417,17457.0,17456.0,0.04160581]
[1673433163720,2.50999098,17457.0,17456.0,0.04150901]
[1673433170600,2.08052252,17457.0,17456.0,0.04150901]
[1673433173738,2.08053252,17457.0,17456.0,0.04150901]
[1673433177781,1.79410252,17457.0,17456.0,0.04150901]
[1673433178126,2.08053252,17457.0,17456.0,0.04150901]
[1673433183810,1.79410252,17457.0,17456.0,0.04150901]
[1673433184272,2.08052252,17457.0,17456.0,0.04150901]
[1673433185511,1.79410252,17457.0,17456.0,0.04150901]
[1673433185778,2.08052252,17457.0,17456.0,0.04150901]
[1673433186837,1.79410252,17457.0,17456.0,0.04150901]
[1673433187833,2.08053252,17457.0,17456.0,0.04150901]
[1673433188608,2.08053252,17457.0,17456.0,0.04144418]
[1673433189372,2.07353252,17457.0,17456.0,0.04144418]
[1673433189636,2.55483727,17457.0,17456.0,0.05244418]
[1673433189886,2.12553252,17457.0,17456.0,0.05244418]
[1673433190132,2.55486817,17457.0,17456.0,0.05244418]
[1673433190410,2.55486529,17457.0,17456.0,0.05244418]
[1673433192972,2.50286529,17457.0,17456.0,0.04144418]
[1673433193728,2.63786529,17457.0,17456.0,0.04344418]
[1673433193990,2.50286529,17457.0,17456.0,0.04144418]
[1673433194243,2.63886579,17457.0,17456.0,0.04344418]
[1673433194519,2.00534016,17457.0,17456.0,0.04344418]
[1673433194804,2.30534016,17457.0,17456.0,0.04344418]
[1673433195277,2.00534016,17457.0,17456.0,0.04344418]
[1673433195790,2.30534016,17457.0,17456.0,0.04344418]
[1673433196095,2.29661068,17457.0,17456.0,0.04344418]
[1673433196308,2.32481068,17457.0,17456.0,0.04144418]
[1673433196569,3.33475417,17457.0,17456.0,0.04144418]
[1673433196833,2.3992686,17457.0,17456.0,0.04144418]
[1673433197111,2.16873928,17457.0,17456.0,0.04144418]
[1673433197373,2.59794767,17457.0,17456.0,0.04144418]
[1673433197620,2.16873928,17457.0,17456.0,0.04144418]
[1673433197868,2.46873928,17457.0,17456.0,0.04144418]
[1673433198393,2.16873928,17457.0,17456.0,0.04144418]
[1673433200193,1.88230928,17457.0,17456.0,0.04144418]
[1673433200441,2.16873928,17457.0,17456.0,0.04144418]
[1673433200957,1.7402306,17457.0,17456.0,0.04144418]
[1673433201253,2.59797196,17457.0,17456.0,0.04144418]
[1673433201464,2.16873928,17457.0,17456.0,0.04144418]
[1673433208003,1.88230928,17457.0,17456.0,0.04144418]
[1673433208269,2.16873928,17457.0,17456.0,0.04144418]
[1673433208865,2.46873928,17457.0,17456.0,0.04144418]
[1673433209326,2.16873928,17457.0,17456.0,0.04144418]
[1673433211188,1.4538006,17457.0,17456.0,0.04144418]
[1673433211493,2.31168369,17457.0,17456.0,0.04144418]
[1673433211760,2.31168369,17457.0,17456.0,0.04136148]
[1673433212021,1.88230928,17457.0,17456.0,0.04136148]
[1673433217919,1.4538006,17457.0,17456.0,0.04136148]
[1673433218170,1.88315549,17457.0,17456.0,1.18760094]
[1673433218687,1.88315549,17457.0,17456.0,1.18760076]
[1673433222589,1.71895549,17457.0,17456.0,1.18760076]
[1673433226082,2.06247194,17457.0,17456.0,1.18760076]
[1673433226335,1.71895549,17457.0,17456.0,1.18760076]
[1673433226591,2.06246397,17457.0,17456.0,1.18760076]
[1673433227349,2.14746417,17457.0,17456.0,1.18760076]
[1673433227592,1.71895549,17457.0,17456.0,0.04136148]
[1673433227838,2.14746417,17457.0,17456.0,0.04136148]
[1673433228588,1.71895549,17457.0,17456.0,0.04136148]
[1673433228842,1.71895549,17457.0,17456.0,1.18758677]
[1673433229099,1.71895549,17457.0,17456.0,0.04136148]
[1673433229600,1.71895549,17457.0,17456.0,1.18759403]
[1673433230688,2.06244978,17457.0,17456.0,1.18759403]
[1673433231462,1.71895549,17457.0,17456.0,1.18759403]
[1673433231712,2.0624229,17457.0,17456.0,1.18759403]
[1673433233334,1.71895549,17457.0,17456.0,1.18759403]
[1673433234853,2.06242951,17457.0,17456.0,1.18759403]
[1673433235116,2.34884951,17457.0,17456.0,1.18759403]
[1673433235632,2.34884951,17457.0,17456.0,1.18748006]
[1673433236373,2.00537549,17457.0,17456.0,1.18748006]
[1673433236623,2.43388417,17457.0,17456.0,1.18748006]
[1673433236882,2.43388417,17457.0,17456.0,1.1874811]
[1673433237142,2.43388417,17457.0,17456.0,0.04124751]
[1673433237862,2.00537549,17457.0,17456.0,1.18748489]
[1673433241032,2.00538549,17457.0,17456.0,1.18748489]
[1673433242292,2.34891391,17457.0,17456.0,1.18748489]
[1673433243807,2.21291391,17457.0,17456.0,1.18748489]
[1673433244056,2.34891391,17457.0,17456.0,1.18948489]
[1673433247726,1.77607791,17457.0,17456.0,1.18948489]
[1673433247969,2.34891391,17457.0,17456.0,1.18948489]
[1673433248492,1.77607791,17457.0,17456.0,1.18948489]
[1673433249000,1.48964791,17457.0,17456.0,1.18948489]
[1673433251357,1.31796272,17457.0,17456.0,1.18948489]
[1673433252345,1.31796272,17457.0,17456.0,1.18965909]
[1673433253101,1.31796272,17457.0,17456.0,1.18948489]
[1673433256372,1.89079872,17457.0,17456.0,1.18948489]
[1673433262794,0.74512672,17457.0,17456.0,1.18948489]
[1673433265843,0.30776457,17457.0,17456.0,1.54852289]
[1673433267378,0.30776457,17457.0,17456.0,1.18948489]
[1673433268649,0.30776457,17457.0,17456.0,1.54852289]
[1673433268913,0.30776457,17457.0,17456.0,1.18948489]
[1673433269422,0.30776457,17457.0,17456.0,1.54852289]
[1673433270470,0.136,17457.0,17456.0,1.54852289]
[1673433270688,0.136,17457.0,17456.0,2.30858946]
[1673433270948,0.136,17457.0,17456.0,2.13705612]
[1673433277227,0.17176457,17458.0,17456.0,2.13505612]
[1673433277486,0.087,17457.0,17456.0,0.63278074]
[1673433277750,0.087,17457.0,17456.0,2.13790342]
[1673433278821,0.087,17457.0,17456.0,3.4707077]
[1673433280587,1e-08,17457.0,17456.0,6.3101138]
[1673433281132,1e-08,17457.0,17456.0,6.13865609]
[1673433281652,1e-08,17457.0,17456.0,6.1386629]
[1673433282175,1e-08,17457.0,17456.0,5.46705406]
[1673433282423,1e-08,17457.0,17456.0,5.63851177]
[1673433282668,0.00015,17459.0,17457.0,0.3]
[1673433282937,0.00015,17459.0,17458.0,1.80512268]
[1673433283696,0.001,17459.0,17458.0,1.80512268]
[1673433283944,1.13343854,17460.0,17458.0,1.80512268]
[1673433284187,0.70619922,17460.0,17459.0,0.359038]
[1673433284444,0.71469922,17460.0,17458.0,0.302]
[1673433284767,1.14193854,17460.0,17458.0,0.302]
[1673433284990,0.71469922,17460.0,17459.0,0.54529135]
[1673433285504,0.70676457,17460.0,17459.0,0.54529135]
[1673433285755,0.77376457,17460.0,17459.0,0.55429135]
[1673433289971,0.76526457,17460.0,17459.0,0.55429135]
[1673433291958,0.5935,17460.0,17459.0,0.55429135]
[1673433292217,0.067,17460.0,17459.0,0.55429135]
[1673433292498,0.067,17460.0,17459.0,2.05927268]
[1673433295290,0.067,17460.0,17459.0,1.70040885]
[1673433296809,0.067,17460.0,17459.0,2.05944685]
[1673433297648,0.067,17460.0,17459.0,1.70040885]
[1673433298165,0.067,17460.0,17459.0,2.05944685]
[1673433298922,0.067,17460.0,17459.0,1.70040885]
[1673433301304,0.067,17460.0,17459.0,1.69873285]
[1673433302392,0.067,17460.0,17459.0,1.69669385]
[1673433310793,0.067,17460.0,17459.0,1.73513492]
[1673433311003,0.23876457,17460.0,17459.0,1.73513492]
[1673433311255,0.067,17460.0,17459.0,1.73513492]
[1673433314270,0.067,17460.0,17459.0,2.09417292]
[1673433314519,0.067,17460.0,17459.0,1.73513492]
[1673433315513,0.067,17460.0,17459.0,2.09417292]
[1673433317262,0.067,17460.0,17459.0,1.73513492]
[1673433317512,0.067,17460.0,17459.0,2.09417292]
[1673433317768,0.067,17460.0,17459.0,1.55259657]
[1673433318022,0.067,17460.0,17459.0,1.19355857]
[1673433318823,0.23876457,17460.0,17459.0,1.19355857]
[1673433319068,0.23876457,17460.0,17459.0,1.55259657]
[1673433319330,0.23876457,17460.0,17459.0,1.19355857]
[1673433320400,0.23876457,17460.0,17459.0,1.55259657]
[1673433320638,0.23876457,17460.0,17459.0,3.1750486]
[1673433320639,0.067,17460.0,17459.0,3.1750486]
[1673433320904,0.067,17460.0,17459.0,4.59376617]
[1673433322642,0.067,17460.0,17459.0,4.75636617]
[1673433324416,0.067,17460.0,17459.0,3.9104186]
[1673433324948,0.067,17460.0,17459.0,4.75635912]
[1673433325464,0.067,17460.0,17459.0,3.9104186]
[1673433325975,0.067,17460.0,17459.0,4.75635354]
[1673433326238,0.067,17460.0,17459.0,3.9104186]
[1673433326482,0.067,17460.0,17459.0,4.7563544]
[1673433326734,0.067,17460.0,17459.0,3.9104186]
[1673433326971,3.3832501,17462.0,17460.0,0.89162051]
[1673433327225,0.7137501,17462.0,17461.0,0.359038]
[1673433327477,0.7137501,17462.0,17461.0,1.14594333]
[1673433327722,0.7137501,17462.0,17461.0,2.47874761]
[1673433328209,0.70248718,17462.0,17461.0,2.47874761]
[1673433328972,0.70233718,17462.0,17461.0,2.47874761]
[1673433332550,0.70233718,17462.0,17461.0,3.04794046]
[1673433338616,0.53057261,17462.0,17461.0,3.04794046]
[1673433339389,0.70233718,17462.0,17461.0,3.04794046]
[1673433339667,0.53057261,17462.0,17461.0,3.04794046]
[1673433340673,0.53057261,17462.0,17461.0,3.62064446]
[1673433340674,0.00547261,17462.0,17461.0,3.62064446]
[1673433341183,0.00547261,17462.0,17461.0,3.05145161]
[1673433341438,0.00068995,17462.0,17461.0,3.8769412]
[1673433341696,0.00068995,17462.0,17461.0,4.2359792]
[1673433341951,0.00068995,17462.0,17461.0,4.8086832]
[1673433342205,0.00068995,17462.0,17461.0,4.80885735]
[1673433343414,0.00068995,17462.0,17461.0,4.63728315]
[1673433347385,0.00068995,17462.0,17461.0,4.80885735]
[1673433347628,0.00068995,17462.0,17461.0,4.63728315]
[1673433347845,0.00068995,17462.0,17461.0,4.80885735]
[1673433348095,0.00068995,17462.0,17461.0,4.15494196]
[1673433348348,0.00068995,17462.0,17461.0,4.80733521]
[1673433349337,0.00068995,17462.0,17461.0,4.15494196]
[1673433349590,0.00068995,17462.0,17461.0,6.00349322]
[1673433350583,0.00057321,17462.0,17461.0,6.00349322]
[1673433351075,0.00057321,17462.0,17461.0,6.14349322]
[1673433352333,0.00057321,17462.0,17461.0,5.97169664]
[1673433352573,0.00057321,17462.0,17461.0,6.14349322]
[1673433353582,0.00057321,17462.0,17461.0,6.31474326]
[1673433353844,0.00057321,17462.0,17461.0,5.97167634]
[1673433354379,0.00057321,17462.0,17461.0,6.14349322]
[1673433354836,0.00057321,17462.0,17461.0,6.17493422]
[1673433357058,0.00410375,17464.0,17462.0,0.3]
[1673433357319,0.00410375,17464.0,17463.0,2.65025933]
[1673433357835,0.00410375,17464.0,17463.0,2.07762033]
[1673433359070,0.00395375,17464.0,17463.0,1.14594333]
[1673433359333,0.00395375,17464.0,17463.0,1.80408727]
[1673433359827,0.00395375,17464.0,17463.0,1.86408727]
[1673433360821,0.00395375,17464.0,17463.0,1.8642614]
[1673433363059,0.00395375,17464.0,17463.0,2.2232994]
[1673433365318,0.00395375,17464.0,17463.0,1.8642614]
[1673433366594,0.00395375,17464.0,17463.0,2.2232994]
[1673433368368,0.00395375,17464.0,17463.0,1.8642614]
[1673433377815,0.00395375,17464.0,17463.0,2.2232994]
[1673433379360,0.00395375,17464.0,17463.0,1.8642614]
[1673433380444,0.00395375,17464.0,17463.0,2.2232994]
[1673433381255,0.00395375,17464.0,17463.0,2.39451332]
[1673433383045,0.00395375,17464.0,17463.0,2.03547532]
[1673433383260,0.00395375,17464.0,17463.0,2.29274403]
[1673433383554,0.00395375,17464.0,17463.0,3.11425185]
[1673433383798,0.00395375,17464.0,17463.0,3.47328985]
[1673433385584,0.00395375,17464.0,17463.0,3.11425185]
[1673433386339,0.00395375,17464.0,17463.0,3.47328985]
[1673433386598,0.00395375,17464.0,17463.0,2.29274403]
[1673433386842,0.00395375,17464.0,17463.0,2.03547532]
[1673433389378,0.57655975,17464.0,17463.0,1.37715725]
[1673433389632,1.00599402,17464.0,17463.0,1.20576415]
[1673433390141,0.74832432,17464.0,17463.0,1.20576415]
[1673433392447,1.00599402,17464.0,17463.0,1.20576415]
[1673433392720,0.74832432,17464.0,17463.0,1.20593828]
[1673433393447,0.74832432,17464.0,17463.0,1.20576415]
[1673433393669,1.00599402,17464.0,17463.0,1.20576415]
[1673433396001,0.74832432,17464.0,17463.0,1.20576415]
[1673433398536,0.74832432,17464.0,17463.0,1.7660536]
[1673433399066,0.57655975,17464.0,17463.0,1.7660536]
[1673433399564,0.57655975,17464.0,17463.0,1.76596959]
[1673433401780,0.57655975,17464.0,17463.0,1.93718351]
[1673433402031,0.57655975,17464.0,17463.0,1.76596959]
[1673433402287,0.57655975,17464.0,17463.0,1.93718351]
[1673433405865,0.57655975,17464.0,17463.0,1.76596959]
[1673433407104,0.57655975,17464.0,17463.0,1.93718351]
[1673433408136,0.00395375,17464.0,17463.0,1.93718351]
[1673433408894,0.00395375,17464.0,17463.0,2.19445222]
[1673433409146,0.00395375,17464.0,17463.0,2.98533695]
[1673433409670,0.00395375,17464.0,17463.0,1.37689406]
[1673433409928,1e-08,17464.0,17463.0,3.2697553]
[1673433410176,1e-08,17464.0,17463.0,3.45715594]
[1673433411234,1e-08,17464.0,17463.0,2.66629568]
[1673433411482,1e-08,17464.0,17463.0,2.40902697]
[1673433411741,1e-08,17464.0,17463.0,2.04998897]
[1673433412259,1e-08,17464.0,17463.0,1.3771097]
[1673433413038,1e-08,17464.0,17463.0,1.7361477]
[1673433413554,1e-08,17464.0,17463.0,1.24835357]
[1673433418691,1e-08,17464.0,17463.0,1.41978313]
[1673433418951,1e-08,17464.0,17463.0,1.77882113]
[1673433420186,1e-08,17464.0,17463.0,1.41978313]
[1673433420429,1e-08,17464.0,17463.0,1.77882113]
[1673433420679,1e-08,17464.0,17463.0,1.41978313]
[1673433420953,1e-08,17464.0,17463.0,1.77882113]
[1673433421191,1e-08,17464.0,17463.0,2.03608984]
[1673433421981,1e-08,17464.0,17463.0,2.82850908]
[1673433423033,1e-08,17464.0,17463.0,2.03608984]
[1673433423275,1e-08,17464.0,17463.0,1.77882113]
[1673433426313,1e-08,17464.0,17463.0,2.03608984]
[1673433426569,1e-08,17464.0,17463.0,2.83937704]
[1673433427588,1e-08,17464.0,17463.0,3.18244396]
[1673433427841,1e-08,17464.0,17463.0,2.83937704]
[1673433429713,1e-08,17464.0,17463.0,2.03608984]
[1673433430014,1e-08,17464.0,17463.0,1.67705184]
[1673433431610,1e-08,17464.0,17463.0,1.41978313]
[1673433432136,1e-08,17464.0,17463.0,1.77882113]
[1673433432378,1e-08,17464.0,17463.0,2.03608984]
[1673433432907,1.12246488,17465.0,17463.0,1.77882113]
[1673433433150,1.12246488,17465.0,17464.0,1.44568014]
[1673433433393,1.12246488,17465.0,17464.0,1.14568014]
[1673433433394,1.29422945,17465.0,17464.0,1.14568014]
[1673433435124,0.74435857,17465.0,17464.0,1.14568014]
[1673433438834,1.00202827,17465.0,17464.0,1.14568014]
[1673433441168,0.74435857,17465.0,17464.0,1.14568014]
[1673433442407,1.00202827,17465.0,17464.0,1.14568014]
[1673433442902,1.00202827,17465.0,17464.0,1.28568014]
[1673433443546,1.75999838,17465.0,17464.0,1.28568014]
[1673433444039,1.58818878,17465.0,17464.0,1.28568014]
[1673433444489,1.58818878,17465.0,17464.0,1.14568014]
[1673433444759,1.58818878,17465.0,17464.0,1.27968014]
[1673433444999,1.82586667,17465.0,17464.0,1.27968014]
[1673433445265,2.28183638,17465.0,17464.0,1.27968014]
[1673433445523,2.49578202,17465.0,17464.0,1.27968014]
[1673433445779,2.4385436,17465.0,17464.0,0.134]
[1673433446028,2.7385436,17465.0,17464.0,0.134]
[1673433446845,2.73840313,17465.0,17464.0,0.134]
[1673433447331,2.30918871,17465.0,17464.0,0.134]
[1673433447861,2.73827671,17465.0,17464.0,0.134]
[1673433448361,2.78153051,17465.0,17464.0,0.134]
[1673433448602,2.43827671,17465.0,17464.0,0.134]
[1673433449112,2.73827671,17465.0,17464.0,0.134]
[1673433449631,2.43827671,17465.0,17464.0,0.134]
[1673433449890,3.08147371,17465.0,17464.0,0.134]
[1673433450136,2.73827671,17465.0,17464.0,0.134]
[1673433450382,2.30918871,17465.0,17464.0,0.134]
[1673433450632,2.73820257,17465.0,17464.0,0.134]
[1673433453787,3.08131123,17465.0,17464.0,0.134]
[1673433454040,2.73820257,17465.0,17464.0,0.134]
[1673433455067,2.73820257,17465.0,17464.0,0.13392886]
[1673433455311,2.45191257,17465.0,17464.0,0.13392886]
[1673433455566,2.73821257,17465.0,17464.0,0.13392886]
[1673433458087,2.43821257,17465.0,17464.0,0.13392886]
[1673433458376,2.78119431,17465.0,17464.0,0.13392886]
[1673433459121,3.08119431,17465.0,17464.0,0.13392886]
[1673433459381,2.78119431,17465.0,17464.0,0.13392886]
[1673433459661,3.08119431,17465.0,17464.0,0.13392886]
[1673433460638,3.08116953,17465.0,17464.0,0.13392886]
[1673433460899,2.73821257,17465.0,17464.0,0.13392886]
[1673433461139,3.08116963,17465.0,17464.0,0.13392886]
[1673433462472,2.73788841,17465.0,17464.0,0.13392886]
[1673433462713,2.90138841,17465.0,17464.0,0.13392886]
[1673433465951,2.61508841,17465.0,17464.0,0.13392886]
[1673433466214,2.90138841,17465.0,17464.0,0.13392886]
[1673433466477,2.61508841,17465.0,17464.0,0.13392886]
[1673433466726,2.90139841,17465.0,17464.0,0.13392886]
[1673433467744,3.24434246,17465.0,17464.0,0.13392886]
[1673433468581,3.2443424,17465.0,17464.0,0.13392886]
[1673433468814,2.90139841,17465.0,17464.0,0.13392886]
[1673433469843,2.61508841,17465.0,17464.0,0.13392886]
[1673433470095,2.60137841,17465.0,17464.0,0.13392886]
[1673433470342,2.94436282,17465.0,17464.0,0.13392886]
[1673433472855,2.78156282,17465.0,17464.0,0.13392886]
[1673433474972,2.73857841,17465.0,17464.0,0.13392886]
[1673433475464,2.43857841,17465.0,17464.0,0.13392886]
[1673433475677,2.78166248,17465.0,17464.0,0.13392886]
[1673433475967,2.78171573,17465.0,17464.0,0.13392886]
[1673433476985,2.78171573,17465.0,17464.0,0.13386016]
[1673433477493,2.43857841,17465.0,17464.0,0.13386016]
[1673433478934,2.43858841,17465.0,17464.0,0.13386016]
[1673433479437,2.15228841,17465.0,17464.0,0.13386016]
[1673433480250,2.43857841,17465.0,17464.0,0.13386016]
[1673433480761,2.30988871,17465.0,17464.0,0.13386016]
[1673433481270,2.29625545,17465.0,17464.0,0.13386016]
[1673433481540,2.78812366,17465.0,17464.0,0.13386016]
[1673433481793,3.29133193,17465.0,17464.0,0.13386016]
[1673433482044,3.30125847,17465.0,17464.0,0.13386016]
[1673433482569,2.88696316,17465.0,17464.0,0.13386016]
[1673433482817,2.99378748,17465.0,17464.0,0.13386016]
[1673433483085,2.99096075,17465.0,17464.0,0.13386016]
[1673433483835,2.62617089,17465.0,17464.0,0.13386016]
[1673433484077,2.47605526,17465.0,17464.0,0.13386016]
[1673433484338,2.6871044,17465.0,17464.0,0.13386016]
[1673433484593,3.41654773,17465.0,17464.0,0.13386016]
[1673433485327,3.42731773,17465.0,17464.0,0.13386016]
[1673433486116,3.42786381,17465.0,17464.0,0.13386016]
[1673433487866,2.84853611,17465.0,17464.0,0.13386016]
[1673433488111,2.84803611,17465.0,17464.0,0.13386016]
[1673433489370,3.21295556,17465.0,17464.0,0.13386016]
[1673433489625,2.84677208,17465.0,17464.0,0.13386016]
[1673433490608,2.56048208,17465.0,17464.0,0.13386016]
[1673433491124,2.9266126,17465.0,17464.0,0.13386016]
[1673433491371,3.0487226,17465.0,17464.0,0.13386016]
[1673433492626,2.99134692,17465.0,17464.0,0.13386016]
[1673433492877,3.0487226,17465.0,17464.0,0.13386016]
[1673433493600,2.6825658,17465.0,17464.0,0.13386016]
[1673433493845,2.53374048,17465.0,17464.0,0.13386016]
[1673433494091,3.04869719,17465.0,17464.0,0.13386016]
[1673433496663,3.04865534,17465.0,17464.0,0.13386016]
[1673433496907,2.76234534,17465.0,17464.0,0.13386016]
[1673433497150,3.04866534,17465.0,17464.0,0.13386016]
[1673433500288,2.99128966,17465.0,17464.0,0.13386016]
[1673433503505,2.99128966,17465.0,17464.0,0.13374223]
[1673433505519,3.04866534,17465.0,17464.0,0.13374223]
[1673433506016,2.68414388,17465.0,17464.0,0.13374223]
[1673433506265,2.5224344,17465.0,17464.0,0.13374223]
[1673433507022,2.53226012,17465.0,17464.0,0.13374223]
[1673433508004,2.99027413,17465.0,17464.0,0.13374223]
[1673433508513,2.53227012,17465.0,17464.0,0.13374223]
[1673433509504,2.5224444,17465.0,17464.0,0.13374223]
[1673433509764,2.53587419,17465.0,17464.0,0.13374223]
[1673433511034,2.37287419,17465.0,17464.0,0.13374223]
[1673433514173,2.37287419,17465.0,17463.0,0.04267343]
[1673433514365,1.56742302,17464.0,17463.0,0.04267343]
[1673433514610,2.99896502,17464.0,17463.0,0.04267343]
[1673433516353,3.01866185,17464.0,17463.0,0.05167343]
[1673433525925,3.01866185,17464.0,17463.0,0.05159051]
[1673433527177,2.50371528,17464.0,17463.0,0.05159051]
[1673433528952,3.01899554,17464.0,17463.0,0.05159051]
[1673433529213,2.50371528,17464.0,17463.0,0.05159051]
[1673433529456,3.01899461,17464.0,17463.0,0.05159051]
[1673433529702,3.01899461,17464.0,17463.0,0.03962645]
[1673433529949,2.73266461,17464.0,17463.0,0.03962645]
[1673433530197,3.01898461,17464.0,17463.0,0.03962645]
[1673433530943,2.73266461,17464.0,17463.0,0.03962645]
[1673433531190,3.01898461,17464.0,17463.0,0.03962645]
[1673433532690,3.18318461,17464.0,17463.0,0.03962645]
[1673433534322,3.17468461,17464.0,17463.0,0.03962645]
[1673433535091,2.88836461,17464.0,17463.0,0.03962645]
[1673433535568,3.17468461,17464.0,17463.0,0.03962645]
[1673433536320,2.88836461,17464.0,17463.0,0.03962645]
[1673433536585,2.90629461,17464.0,17463.0,0.03962645]
[1673433537332,2.90320561,17464.0,17463.0,0.03962645]
[1673433538076,2.88527561,17464.0,17463.0,0.03962645]
[1673433538591,2.90320561,17464.0,17463.0,0.03962645]
[1673433538842,2.88527561,17464.0,17463.0,0.03962645]
[1673433539581,2.90320561,17464.0,17463.0,0.03962645]
[1673433540081,3.17159561,17464.0,17463.0,0.03962645]
[1673433544336,2.35631628,17464.0,17463.0,0.03962645]
[1673433544581,2.87174001,17464.0,17463.0,0.03962645]
[1673433545246,2.58542001,17464.0,17463.0,0.03962645]
[1673433545971,2.87174001,17464.0,17463.0,0.03962645]
[1673433547470,2.58542001,17464.0,17463.0,0.03962645]
[1673433547726,2.87174001,17464.0,17463.0,0.03962645]
[1673433548225,3.17174001,17464.0,17463.0,0.03962645]
[1673433550310,2.88542001,17464.0,17463.0,0.03962645]
[1673433550555,3.17174001,17464.0,17463.0,0.03962645]
[1673433552646,3.00904001,17464.0,17463.0,0.03962645]
[1673433553875,2.41212901,17464.0,17463.0,0.03962645]
[1673433554131,2.41211901,17464.0,17463.0,0.03962645]
[1673433555298,2.41212901,17464.0,17463.0,0.03962645]
[1673433555797,2.71212901,17464.0,17463.0,0.03962645]
[1673433559026,2.42580901,17464.0,17463.0,0.03962645]
[1673433559267,2.71212901,17464.0,17463.0,0.03962645]
[1673433559996,2.19670528,17464.0,17463.0,0.03962645]
[1673433560246,1.89670528,17464.0,17463.0,0.03962645]
[1673433561063,2.71212901,17464.0,17463.0,0.03954192]
[1673433573222,2.42580901,17464.0,17463.0,0.03954192]
[1673433573433,2.71212901,17464.0,17463.0,0.03954192]
[1673433574196,2.42580901,17464.0,17463.0,0.03954192]
[1673433574442,2.71212901,17464.0,17463.0,0.03954192]
[1673433578890,2.19670528,17464.0,17463.0,0.03954192]
[1673433579893,2.71217191,17464.0,17463.0,0.03954192]
[1673433581885,2.42585191,17464.0,17463.0,0.03954192]
[1673433582398,2.71217191,17464.0,17463.0,0.03954192]
[1673433582902,2.71217191,17464.0,17463.0,0.03947216]
[1673433583148,2.42585191,17464.0,17463.0,0.03947216]
[1673433583368,2.71217191,17464.0,17463.0,0.03947216]
[1673433591302,2.42585191,17464.0,17463.0,0.03947216]
[1673433591572,2.71217191,17464.0,17463.0,0.03947216]
[1673433593266,2.41217191,17464.0,17463.0,0.03947216]
[1673433593521,2.12585191,17464.0,17463.0,0.03947216]
[1673433593779,1.61038528,17464.0,17463.0,0.03947216]
[1673433597518,2.12585191,17464.0,17463.0,0.03947216]
[1673433598777,2.42585191,17464.0,17463.0,0.03947216]
[1673433601929,2.42381791,17464.0,17463.0,0.03947216]
[1673433602173,2.71012791,17464.0,17463.0,0.03923422]
[1673433602669,2.54592791,17464.0,17463.0,0.03923422]
[1673433603202,2.25961791,17464.0,17463.0,0.03923422]
[1673433603449,2.54592791,17464.0,17463.0,0.03923422]
[1673433605202,2.25961791,17464.0,17463.0,0.03923422]
[1673433605460,2.54593791,17464.0,17463.0,0.03923422]
[1673433610776,2.53793791,17464.0,17463.0,0.03062645]
[1673433611028,2.54093791,17464.0,17463.0,0.03062645]
[1673433611279,2.53793791,17464.0,17463.0,0.03062645]
[1673433612025,2.54593791,17464.0,17463.0,0.03962645]
[1673433612777,2.25961791,17464.0,17463.0,0.03962645]
[1673433613027,2.54592791,17464.0,17463.0,0.03962645]
[1673433615255,2.24592791,17464.0,17463.0,0.03962645]
[1673433615779,2.54592791,17464.0,17463.0,0.03962645]
[1673433616034,2.54592791,17464.0,17463.0,0.03844891]
[1673433619198,2.54593791,17464.0,17463.0,0.03844891]
[1673433620681,2.25961791,17464.0,17463.0,0.03844891]
[1673433620940,2.54593791,17464.0,17463.0,0.03844891]
[1673433622792,2.70943791,17464.0,17463.0,0.03844891]
[1673433623051,2.42311791,17464.0,17463.0,0.03844891]
[1673433623350,2.70942791,17464.0,17463.0,0.03844891]
[1673433625199,2.70943791,17464.0,17463.0,0.03844891]
[1673433631172,2.35608988,17464.0,17463.0,0.03844891]
[1673433631488,2.18227445,17464.0,17463.0,0.03844891]
[1673433631741,2.19247657,17464.0,17463.0,0.03844891]
[1673433635428,2.19248657,17464.0,17463.0,0.03844891]
[1673433638902,2.19248657,17464.0,17463.0,0.03838175]
[1673433639199,1.90615657,17464.0,17463.0,0.03838175]
[1673433639444,2.19248657,17464.0,17463.0,0.03838175]
[1673433640455,2.58346234,17464.0,17463.0,0.03838175]
[1673433640704,0.15570817,17462.0,17461.0,1.33280428]
[1673433640955,3.08537251,17462.0,17461.0,1.33280428]
[1673433641222,3.79335009,17462.0,17461.0,1.33280428]
[1673433641476,1.50266209,17462.0,17461.0,1.33280428]
[1673433641796,1.50266209,17462.0,17458.0,0.00360886]
[1673433641797,3.7061703,17462.0,17458.0,0.00360886]
[1673433642007,0.1635,17459.0,17458.0,0.42755514]
[1673433642267,3.49394935,17459.0,17458.0,1.33641314]
[1673433642526,2.89723346,17459.0,17458.0,1.33641314]
[1673433642765,3.29854491,17459.0,17458.0,1.33641314]
[1673433643517,3.38254491,17459.0,17458.0,1.33641314]
[1673433644052,3.72555966,17459.0,17458.0,1.33641314]
[1673433645856,3.42555966,17459.0,17458.0,1.33641314]
[1673433646170,3.94045738,17459.0,17458.0,1.33641314]
[1673433646648,3.68329921,17459.0,17458.0,1.33641314]
[1673433647149,3.51143335,17459.0,17458.0,1.33641314]
[1673433647649,3.94045681,17459.0,17458.0,1.33641314]
[1673433647923,3.68329921,17459.0,17458.0,1.33641314]
[1673433648238,3.52367635,17459.0,17458.0,1.33641314]
[1673433652931,3.23727635,17459.0,17458.0,1.33641314]
[1673433653442,3.52366635,17459.0,17458.0,1.33641314]
[1673433654201,3.23727635,17459.0,17458.0,1.33641314]
[1673433654463,3.52366635,17459.0,17458.0,1.33641314]
[1673433655199,3.69498902,17459.0,17458.0,1.33641314]
[1673433655442,3.35197427,17459.0,17458.0,1.33641314]
[1673433655932,3.06558427,17459.0,17458.0,1.33641314]
[1673433656203,3.23727635,17459.0,17458.0,1.33641314]
[1673433656456,3.52366635,17459.0,17458.0,1.33641314]
[1673433656705,3.23727635,17459.0,17458.0,1.33641314]
[1673433656963,3.52366635,17459.0,17458.0,1.33641314]
[1673433665024,3.52366635,17459.0,17458.0,1.33631991]
[1673433665535,3.52366635,17459.0,17458.0,1.33158657]
[1673433665784,3.86830738,17459.0,17458.0,1.33158657]
[1673433666043,3.91046996,17459.0,17458.0,1.33158657]
[1673433667025,3.91049996,17459.0,17458.0,1.33158657]
[1673433667240,3.91049996,17459.0,17458.0,1.29199303]
[1673433667727,3.91048996,17459.0,17458.0,1.29199303]